bitfinex-derivatives/quotes_BNBF0:USTF0_20250710
["timestamp","ask_amount","ask_price","bid_price","bid_amount"]
[1752141013928,1.5091497,671.69,670.45,0.25923043]
[1752141014126,1.5091497,671.68,670.45,0.25923043]
[1752141014326,1.5091497,671.67,670.45,0.25923043]
[1752141014528,1.5091497,671.66,670.45,0.25923043]
[1752141014727,1.5091497,671.65,670.45,0.25923043]
[1752141015031,1.5091497,671.64,670.45,0.25923043]
[1752141015329,1.5091497,671.63,670.45,0.25923043]
[1752141015533,1.5091497,671.62,670.45,0.25923043]
[1752141015731,1.0587934,671.75,670.45,0.25923043]
[1752141016034,2.5680369,671.74,670.45,0.25923043]
[1752141016235,1.5092435,671.73,670.45,0.25923043]
[1752141016440,1.5092435,671.72,670.45,0.25923043]
[1752141016636,1.5092435,671.71,670.45,0.25923043]
[1752141016836,1.5092435,671.7,670.45,0.25923043]
[1752141017132,1.5092435,671.69,670.45,0.25923043]
[1752141017333,1.5092435,671.68,670.45,0.25923043]
[1752141017534,1.5092435,671.67,670.45,0.25923043]
[1752141017735,1.5092435,671.66,670.45,0.25923043]
[1752141017935,1.5092435,671.65,670.45,0.25923043]
[1752141018137,1.5092435,671.64,670.45,0.25923043]
[1752141018337,1.5092435,671.63,670.45,0.25923043]
[1752141018536,1.5092435,671.62,670.45,0.25923043]
[1752141018733,1.0588956,671.74,670.45,0.25923043]
[1752141019037,1.5094508,671.73,670.45,0.25923043]
[1752141019234,1.5094508,671.72,670.45,0.25923043]
[1752141019437,1.5094508,671.71,670.45,0.25923043]
[1752141019738,1.5094508,671.7,670.45,0.25923043]
[1752141020033,1.5094508,671.69,670.45,0.25923043]
[1752141020232,1.0589072,671.74,670.45,0.25923043]
[1752141020233,1.5094508,671.68,670.45,0.25923043]
[1752141020434,1.5094508,671.67,670.45,0.25923043]
[1752141020736,1.5094508,671.66,670.45,0.25923043]
[1752141020935,1.5094508,671.65,670.45,0.25923043]
[1752141021133,1.5094508,671.64,670.45,0.25923043]
[1752141021335,1.5094508,671.63,670.45,0.25923043]
[1752141021533,1.5094508,671.62,670.45,0.25923043]
[1752141021732,1.0589521,671.74,670.45,0.25923043]
[1752141021935,1.5094827,671.73,670.45,0.25923043]
[1752141022137,1.5094827,671.72,670.45,0.25923043]
[1752141022337,1.5094827,671.71,670.45,0.25923043]
[1752141022538,1.5094827,671.7,670.45,0.25923043]
[1752141022740,1.5094827,671.69,670.45,0.25923043]
[1752141022939,1.5094827,671.68,670.45,0.25923043]
[1752141023139,1.5094827,671.67,670.45,0.25923043]
[1752141023337,0.25926712,671.77,670.45,0.25923043]
[1752141023338,1.5094827,671.66,670.45,0.25923043]
[1752141023535,1.5094827,671.65,670.45,0.25923043]
[1752141023736,1.5094827,671.64,670.45,0.25923043]
[1752141024036,1.5094827,671.63,670.45,0.25923043]
[1752141024240,1.5094827,671.62,670.45,0.25923043]
[1752141024437,0.25926712,671.77,670.45,0.25923043]
[1752141024438,1.0589682,671.75,670.45,0.25923043]
[1752141024736,2.568509,671.74,670.45,0.25923043]
[1752141024936,1.5095408,671.73,670.45,0.25923043]
[1752141025137,1.5095408,671.72,670.53,5.5831104]
[1752141025341,1.5095408,671.71,670.53,5.5831104]
[1752141025538,1.5095408,671.7,670.53,5.5831104]
[1752141025740,1.5095408,671.69,670.5,5.5831104]
[1752141026042,1.5095408,671.68,670.5,5.5831104]
[1752141026342,1.5095408,671.67,670.49,5.5831104]
[1752141026641,1.0589702,671.74,670.49,5.5831104]
[1752141026839,1.509532,671.73,670.48,5.5831104]
[1752141027041,1.509532,671.72,670.48,5.5831104]
[1752141027241,1.509532,671.71,670.45,0.25923043]
[1752141027437,1.509532,671.7,670.45,0.25923043]
[1752141027641,1.509532,671.69,670.45,0.25923043]
[1752141027842,1.509532,671.68,670.45,0.25923043]
[1752141028042,1.509532,671.67,670.45,0.25923043]
[1752141028237,0.25926712,671.77,670.45,0.25923043]
[1752141028238,1.509532,671.66,670.45,0.25923043]
[1752141028439,1.509532,671.65,670.45,0.25923043]
[1752141028638,1.509532,671.64,670.45,0.25923043]
[1752141028843,1.509532,671.63,670.45,0.25923043]
[1752141029138,1.509532,671.62,670.45,0.25923043]
[1752141029440,1.509532,671.61,670.45,0.25923043]
[1752141029645,1.509532,671.6,670.45,0.25923043]
[1752141029843,1.509532,671.59,670.45,0.25923043]
[1752141030039,1.509532,671.58,670.45,0.25923043]
[1752141030241,1.509532,671.57,670.45,0.25923043]
[1752141030441,1.509532,671.56,670.45,0.25923043]
[1752141030644,1.509532,671.55,670.45,0.25923043]
[1752141030842,1.0589609,671.76,670.45,0.25923043]
[1752141031041,2.5685149,671.75,670.45,0.25923043]
[1752141031343,2.5685149,671.74,670.45,0.25923043]
[1752141031544,2.5685149,671.73,670.45,0.25923043]
[1752141031744,1.509554,671.72,670.45,0.25923043]
[1752141031941,1.509554,671.71,670.45,0.25923043]
[1752141032141,1.509554,671.7,670.45,0.25923043]
[1752141032341,1.509554,671.69,670.45,0.25923043]
[1752141032647,1.509554,671.68,670.45,0.25923043]
[1752141032847,1.509554,671.67,670.45,0.25923043]
[1752141033047,1.509554,671.66,670.45,0.25923043]
[1752141033348,1.509554,671.65,670.45,0.25923043]
[1752141033646,1.509554,671.64,670.45,0.25923043]
[1752141033947,1.509554,671.63,670.45,0.25923043]
[1752141034241,1.509554,671.62,670.45,0.25923043]
[1752141034444,1.509554,671.61,670.45,0.25923043]
[1752141034647,1.509554,671.6,670.45,0.25923043]
[1752141034846,1.509554,671.59,670.45,0.25923043]
[1752141035044,1.509554,671.58,670.45,0.25923043]
[1752141035244,1.509554,671.57,670.45,0.25923043]
[1752141035445,1.509554,671.56,670.45,0.25923043]
[1752141035649,1.509554,671.55,670.45,0.25923043]
[1752141035947,1.509554,671.54,670.45,0.25923043]
[1752141036150,1.509554,671.53,670.45,0.25923043]
[1752141036351,1.509554,671.52,670.45,0.25923043]
[1752141036549,0.25926229,671.63,670.45,0.25923043]
[1752141036747,1.5097463,671.62,670.45,0.25923043]
[1752141036946,1.5097463,671.61,670.45,0.25923043]
[1752141037148,1.5097463,671.6,670.45,0.25923043]
[1752141037352,1.5097463,671.59,670.45,0.25923043]
[1752141037647,1.5097463,671.58,670.45,0.25923043]
[1752141037851,1.5097463,671.57,670.45,0.25923043]
[1752141038049,1.5097463,671.56,670.45,0.25923043]
[1752141038254,1.5097463,671.55,670.45,0.25923043]
[1752141038453,1.5097463,671.54,670.45,0.25923043]
[1752141038651,1.5097463,671.53,670.45,0.25923043]
[1752141038951,1.5097463,671.52,670.45,0.25923043]
[1752141039147,0.25926229,671.63,670.45,0.25923043]
[1752141039352,1.50896,671.62,670.45,0.25923043]
[1752141039551,1.50896,671.61,670.45,0.25923043]
[1752141039750,1.50896,671.6,670.45,0.25923043]
[1752141039955,1.50896,671.59,670.45,0.25923043]
[1752141040254,1.50896,671.58,670.45,0.25923043]
[1752141040452,1.50896,671.57,670.45,0.25923043]
[1752141040656,1.50896,671.56,670.45,0.25923043]
[1752141040857,1.50896,671.55,670.45,0.25923043]
[1752141041156,1.50896,671.54,670.45,0.25923043]
[1752141041353,1.50896,671.53,670.45,0.25923043]
[1752141041552,1.50896,671.52,670.45,0.25923043]
[1752141041753,0.25926229,671.63,670.45,0.25923043]
[1752141042054,1.5089501,671.62,670.45,0.25923043]
[1752141042252,1.5089501,671.61,670.45,0.25923043]
[1752141042456,1.5089501,671.6,670.45,0.25923043]
[1752141042653,1.5089501,671.59,670.45,0.25923043]
[1752141042858,1.5089501,671.58,670.45,0.25923043]
[1752141043054,1.5089501,671.57,670.45,0.25923043]
[1752141043257,1.5089501,671.56,670.45,0.25923043]
[1752141043555,1.5089501,671.55,670.45,0.25923043]
[1752141043757,1.5089501,671.54,670.45,0.25923043]
[1752141044057,1.5089501,671.53,670.45,0.25923043]
[1752141044253,1.5089501,671.52,670.45,0.25923043]
[1752141044459,0.25926229,671.63,670.45,0.25923043]
[1752141044657,1.5089497,671.62,670.45,0.25923043]
[1752141044857,1.5089497,671.61,670.45,0.25923043]
[1752141045056,1.5089497,671.6,670.45,0.25923043]
[1752141045258,1.5089497,671.59,670.45,0.25923043]
[1752141045462,1.5089497,671.58,670.45,0.25923043]
[1752141045658,1.5089497,671.57,670.45,0.25923043]
[1752141045959,1.5089497,671.56,670.45,0.25923043]
[1752141046159,1.5089497,671.55,670.45,0.25923043]
[1752141046361,0.25926229,671.63,670.45,0.25923043]
[1752141046557,1.5089475,671.62,670.45,0.25923043]
[1752141046759,1.5089475,671.61,670.45,0.25923043]
[1752141046956,1.5089475,671.6,670.45,0.25923043]
[1752141047157,1.5089475,671.59,670.45,0.25923043]
[1752141047457,1.5089475,671.58,670.45,0.25923043]
[1752141047657,1.5089475,671.57,670.45,0.25923043]
[1752141047858,1.5089475,671.56,670.45,0.25923043]
[1752141048056,1.5089475,671.55,670.45,0.25923043]
[1752141048360,1.5089475,671.54,670.45,0.25923043]
[1752141048560,1.5089475,671.53,670.45,0.25923043]
[1752141048763,1.5089475,671.52,670.45,0.25923043]
[1752141048962,0.25926229,671.63,670.45,0.25923043]
[1752141049264,1.5089461,671.62,670.45,0.25923043]
[1752141049458,1.5089461,671.61,670.45,0.25923043]
[1752141049663,1.5089461,671.6,670.45,0.25923043]
[1752141049862,1.5089461,671.59,670.45,0.25923043]
[1752141050065,1.5089461,671.58,670.45,0.25923043]
[1752141050264,1.5089461,671.57,670.45,0.25923043]
[1752141050464,1.5089461,671.56,670.45,0.25923043]
[1752141050663,0.25926229,671.63,670.45,0.25923043]
[1752141050664,1.5089461,671.55,670.45,0.25923043]
[1752141050863,1.5089461,671.54,670.45,0.25923043]
[1752141051063,1.5089461,671.53,670.45,0.25923043]
[1752141051367,1.5089461,671.52,670.45,0.25923043]
[1752141051668,1.5089461,671.51,670.45,0.25923043]
[1752141051868,1.5089461,671.5,670.45,0.25923043]
[1752141052164,1.5089461,671.49,670.45,0.25923043]
[1752141052362,1.5089461,671.48,670.45,0.25923043]
[1752141052567,1.5089461,671.47,670.45,0.25923043]
[1752141052867,1.5089461,671.46,670.45,0.25923043]
[1752141053069,1.5089461,671.45,670.45,0.25923043]
[1752141053268,0.25926229,671.63,670.45,0.25923043]
[1752141053269,1.5089461,671.44,670.45,0.25923043]
[1752141053468,1.5089461,671.43,670.45,0.25923043]
[1752141053668,1.5089461,671.42,670.45,0.25923043]
[1752141053873,0.25926229,671.63,670.45,0.25923043]
[1752141054070,1.5060555,671.62,670.45,0.25923043]
[1752141054272,1.5060555,671.61,670.45,0.25923043]
[1752141054566,1.5060555,671.6,670.45,0.25923043]
[1752141054774,1.5060555,671.59,670.45,0.25923043]
[1752141054968,1.5060555,671.58,670.45,0.25923043]
[1752141055170,1.5060555,671.57,670.45,0.25923043]
[1752141055370,1.5060555,671.56,670.45,0.25923043]
[1752141055570,1.5060555,671.55,670.45,0.25923043]
[1752141055874,1.5060555,671.54,670.45,0.25923043]
[1752141056172,1.5060555,671.53,670.45,0.25923043]
[1752141056372,1.5060555,671.52,670.45,0.25923043]
[1752141056575,1.5060555,671.51,670.45,0.25923043]
[1752141056770,1.5060555,671.5,670.45,0.25923043]
[1752141056970,0.25926229,671.63,670.45,0.25923043]
[1752141057172,1.5052703,671.62,670.45,0.25923043]
[1752141057374,1.5052703,671.61,670.45,0.25923043]
[1752141057571,1.5052703,671.6,670.45,0.25923043]
[1752141057769,1.5052703,671.59,670.45,0.25923043]
[1752141057973,1.5052703,671.58,670.45,0.25923043]
[1752141058276,1.5052703,671.57,670.45,0.25923043]
[1752141058476,1.5052703,671.56,670.45,0.25923043]
[1752141058778,1.5052703,671.55,670.45,0.25923043]
[1752141058975,1.5052703,671.54,670.45,0.25923043]
[1752141059174,0.25926229,671.63,670.45,0.25923043]
[1752141059373,1.5047617,671.62,670.45,0.25923043]
[1752141059572,1.5047617,671.61,670.45,0.25923043]
[1752141059776,1.5047617,671.6,670.45,0.25923043]
[1752141059975,1.5047617,671.59,670.45,0.25923043]
[1752141060177,1.5047617,671.58,670.45,0.25923043]
[1752141060374,1.5047617,671.57,670.45,0.25923043]
[1752141060676,1.5047617,671.56,670.45,0.25923043]
[1752141060874,1.5047617,671.55,670.45,0.25923043]
[1752141061077,0.25926229,671.63,670.45,0.25923043]
[1752141061377,1.5047617,671.62,670.45,0.25923043]
[1752141061574,1.5047617,671.61,670.45,0.25923043]
[1752141061776,1.5047617,671.6,670.45,0.25923043]
[1752141061975,1.5047617,671.59,670.45,0.25923043]
[1752141062174,1.5047617,671.58,670.45,0.25923043]
[1752141062474,1.5047617,671.57,670.45,0.25923043]
[1752141062676,1.5047617,671.56,670.45,0.25923043]
[1752141062873,0.25926229,671.63,670.45,0.25923043]
[1752141063077,1.5045029,671.62,670.45,0.25923043]
[1752141063276,1.5045029,671.61,670.45,0.25923043]
[1752141063473,1.5045029,671.6,670.45,0.25923043]
[1752141063673,1.5045029,671.59,670.45,0.25923043]
[1752141063975,1.5045029,671.58,670.45,0.25923043]
[1752141064171,1.5045029,671.57,670.45,0.25923043]
[1752141064374,0.25926229,671.63,670.45,0.25923043]
[1752141064675,1.5042973,671.62,670.45,0.25923043]
[1752141064872,0.25926229,671.63,670.45,0.25923043]
[1752141064873,1.5042973,671.61,670.45,0.25923043]
[1752141065074,1.5042973,671.6,670.45,0.25923043]
[1752141065278,0.25926229,671.63,670.45,0.25923043]
[1752141065279,1.5042973,671.59,670.45,0.25923043]
[1752141065482,1.5042973,671.58,670.45,0.25923043]
[1752141065675,1.5042973,671.57,670.45,0.25923043]
[1752141065880,1.5042973,671.56,670.45,0.25923043]
[1752141066079,1.5042973,671.55,670.45,0.25923043]
[1752141066281,1.5042973,671.54,670.45,0.25923043]
[1752141066583,1.5042973,671.53,670.45,0.25923043]
[1752141066784,1.5042973,671.52,670.45,0.25923043]
[1752141066983,1.5042973,671.51,670.45,0.25923043]
[1752141067184,1.5042973,671.5,670.45,0.25923043]
[1752141067384,1.5042973,671.49,670.45,0.25923043]
[1752141067586,0.25926229,671.63,670.45,0.25923043]
[1752141067785,1.5040263,671.62,670.45,0.25923043]
[1752141068082,1.5040263,671.61,670.45,0.25923043]
[1752141068281,1.5040263,671.6,670.45,0.25923043]
[1752141068487,1.5040263,671.59,670.45,0.25923043]
[1752141068682,1.5040263,671.58,670.45,0.25923043]
[1752141068885,1.5040263,671.57,670.45,0.25923043]
[1752141069184,1.5040263,671.56,670.45,0.25923043]
[1752141069381,1.5040263,671.55,670.45,0.25923043]
[1752141069682,1.5040263,671.54,670.45,0.25923043]
[1752141069881,1.5040263,671.53,670.45,0.25923043]
[1752141070085,1.5040263,671.52,670.45,0.25923043]
[1752141070286,1.5040263,671.51,670.45,0.25923043]
[1752141070483,1.5040263,671.5,670.45,0.25923043]
[1752141070682,1.5040263,671.49,670.45,0.25923043]
[1752141070887,1.5040263,671.48,670.45,0.25923043]
[1752141071186,0.25926229,671.63,670.45,0.25923043]
[1752141071387,1.5037631,671.62,670.45,0.25923043]
[1752141071587,1.5037631,671.61,670.45,0.25923043]
[1752141071888,1.5037631,671.6,670.45,0.25923043]
[1752141072082,1.5037631,671.59,670.45,0.25923043]
[1752141072386,0.25926229,671.63,670.45,0.25923043]
[1752141072387,1.5037631,671.58,670.45,0.25923043]
[1752141072584,1.5037631,671.57,670.45,0.25923043]
[1752141072783,1.5037631,671.56,670.45,0.25923043]
[1752141072983,1.5037631,671.55,670.45,0.25923043]
[1752141073282,1.5037631,671.54,670.45,0.25923043]
[1752141073482,1.5037631,671.53,670.45,0.25923043]
[1752141073682,1.5037631,671.52,670.45,0.25923043]
[1752141073882,1.5037631,671.51,670.45,0.25923043]
[1752141074086,0.25926229,671.63,670.45,0.25923043]
[1752141074283,1.5037837,671.62,670.45,0.25923043]
[1752141074584,1.5037837,671.61,670.45,0.25923043]
[1752141074783,1.5037837,671.6,670.45,0.25923043]
[1752141074986,1.5037837,671.59,670.45,0.25923043]
[1752141075187,1.5037837,671.58,670.45,0.25923043]
[1752141075389,1.5037837,671.57,670.45,0.25923043]
[1752141075587,1.5037837,671.56,670.45,0.25923043]
[1752141075786,1.5037837,671.55,670.45,0.25923043]
[1752141075991,1.5037837,671.54,670.45,0.25923043]
[1752141076288,0.25926229,671.63,670.45,0.25923043]
[1752141076487,1.5038256,671.62,670.45,0.25923043]
[1752141076692,1.5038256,671.61,670.45,0.25923043]
[1752141076889,1.5038256,671.6,670.45,0.25923043]
[1752141077088,1.5038256,671.59,670.45,0.25923043]
[1752141077291,1.5038256,671.58,670.45,0.25923043]
[1752141077490,1.5038256,671.57,670.45,0.25923043]
[1752141077692,1.5038256,671.56,670.45,0.25923043]
[1752141077891,0.25926229,671.63,670.45,0.25923043]
[1752141078090,1.5038601,671.62,670.45,0.25923043]
[1752141078388,1.5038601,671.61,670.45,0.25923043]
[1752141078591,1.5038601,671.6,670.45,0.25923043]
[1752141078894,1.5038601,671.59,670.45,0.25923043]
[1752141079089,1.5038601,671.58,670.45,0.25923043]
[1752141079293,1.5038601,671.57,670.45,0.25923043]
[1752141079489,1.5038601,671.56,670.45,0.25923043]
[1752141079691,0.25926229,671.63,670.45,0.25923043]
[1752141079987,1.5039241,671.62,670.45,0.25923043]
[1752141080190,1.5039241,671.61,670.45,0.25923043]
[1752141080391,1.5039241,671.6,670.45,0.25923043]
[1752141080689,1.5039241,671.59,670.45,0.25923043]
[1752141080890,1.5039241,671.58,670.45,0.25923043]
[1752141081092,1.5039241,671.57,670.45,0.25923043]
[1752141081290,1.5039241,671.56,670.45,0.25923043]
[1752141081494,0.25926229,671.63,670.45,0.25923043]
[1752141081792,1.5040135,671.62,670.45,0.25923043]
[1752141081991,1.5040135,671.61,670.45,0.25923043]
[1752141082194,1.5040135,671.6,670.45,0.25923043]
[1752141082392,1.5040135,671.59,670.45,0.25923043]
[1752141082595,1.5040135,671.58,670.45,0.25923043]
[1752141082792,1.5040135,671.57,670.45,0.25923043]
[1752141083092,0.25926229,671.63,670.45,0.25923043]
[1752141083292,1.5040542,671.62,670.45,0.25923043]
[1752141083491,1.5040542,671.61,670.45,0.25923043]
[1752141083692,1.5040542,671.6,670.45,0.25923043]
[1752141083993,1.5040542,671.59,670.45,0.25923043]
[1752141084192,1.5040542,671.58,670.45,0.25923043]
[1752141084395,1.5040542,671.57,670.45,0.25923043]
[1752141084697,0.25926229,671.63,670.45,0.25923043]
[1752141084892,1.5041436,671.62,670.45,0.25923043]
[1752141085093,1.5041436,671.61,670.45,0.25923043]
[1752141085399,1.5041436,671.6,670.45,0.25923043]
[1752141085599,1.5041436,671.59,670.45,0.25923043]
[1752141085799,1.5041436,671.58,670.45,0.25923043]
[1752141086100,1.5041436,671.57,670.45,0.25923043]
[1752141086300,1.5041436,671.56,670.45,0.25923043]
[1752141086500,0.25926229,671.63,670.46,5.5831104]
[1752141086703,1.5042457,671.62,670.46,5.5831104]
[1752141086899,1.5042457,671.61,670.46,5.5831104]
[1752141087102,1.5042457,671.6,670.47,5.5831104]
[1752141087301,1.5042457,671.59,670.47,5.5831104]
[1752141087501,1.5042457,671.58,670.47,5.5831104]
[1752141087701,1.5042457,671.57,670.47,5.5831104]
[1752141087902,0.25926229,671.63,670.47,5.5831104]
[1752141088201,1.5043152,671.62,670.47,5.5831104]
[1752141088398,1.5043152,671.61,670.47,5.5831104]
[1752141088598,1.5043152,671.6,670.45,0.25923043]
[1752141088799,1.5044822,671.59,670.45,0.25923043]
[1752141089102,0.25926229,671.63,670.45,0.25923043]
[1752141089300,1.5044822,671.62,670.45,0.25923043]
[1752141089599,1.5044822,671.61,670.45,0.25923043]
[1752141089804,1.5044822,671.6,670.45,0.25923043]
[1752141090108,1.5044822,671.59,670.45,0.25923043]
[1752141090304,0.25926229,671.63,670.45,0.25923043]
[1752141090506,1.5045609,671.62,670.45,0.25923043]
[1752141090709,1.5045609,671.61,670.45,0.25923043]
[1752141090910,1.5045609,671.6,670.45,0.25923043]
[1752141091108,1.5045609,671.59,670.45,0.25923043]
[1752141091309,0.25926229,671.63,670.45,0.25923043]
[1752141091510,1.5046096,671.62,670.45,0.25923043]
[1752141091710,1.5046096,671.61,670.45,0.25923043]
[1752141091910,1.5046096,671.6,670.45,0.25923043]
[1752141092106,1.5046096,671.59,670.45,0.25923043]
[1752141092313,0.25926229,671.63,670.45,0.25923043]
[1752141092512,1.5046595,671.62,670.45,0.25923043]
[1752141092712,1.5046595,671.61,670.45,0.25923043]
[1752141092913,1.5046595,671.6,670.45,0.25923043]
[1752141093110,1.5046595,671.59,670.45,0.25923043]
[1752141093310,1.5046595,671.58,670.45,0.25923043]
[1752141093510,1.5046595,671.57,670.45,0.25923043]
[1752141093715,0.25926229,671.63,670.45,0.25923043]
[1752141093915,1.5056186,671.62,670.45,0.25923043]
[1752141094114,1.5056186,671.61,670.45,0.25923043]
[1752141094314,1.5056186,671.6,670.45,0.25923043]
[1752141094512,1.5056186,671.59,670.45,0.25923043]
[1752141094713,1.5056186,671.58,670.45,0.25923043]
[1752141094912,0.25926229,671.63,670.45,0.25923043]
[1752141095113,1.5051498,671.62,670.45,0.25923043]
[1752141095315,1.5051498,671.61,670.45,0.25923043]
[1752141095613,1.5051498,671.6,670.45,0.25923043]
[1752141095811,0.25926229,671.63,670.45,0.25923043]
[1752141096010,1.5051621,671.62,670.45,0.25923043]
[1752141096312,1.5051621,671.61,670.45,0.25923043]
[1752141096514,1.5051621,671.6,670.45,0.25923043]
[1752141096714,0.25926229,671.63,670.45,0.25923043]
[1752141097010,1.5051748,671.62,670.45,0.25923043]
[1752141097210,1.5051748,671.61,670.45,0.25923043]
[1752141097412,1.5051748,671.6,670.45,0.25923043]
[1752141097612,1.5051748,671.59,670.45,0.25923043]
[1752141097816,0.25926229,671.63,670.45,0.25923043]
[1752141098015,1.505189,671.62,670.45,0.25923043]
[1752141098211,1.505189,671.61,670.45,0.25923043]
[1752141098411,1.505189,671.6,670.45,0.25923043]
[1752141098615,1.505189,671.59,670.45,0.25923043]
[1752141098810,0.25926229,671.63,670.45,0.25923043]
[1752141099015,1.5069114,671.62,670.45,0.25923043]
[1752141099216,1.5069114,671.61,670.45,0.25923043]
[1752141099515,1.5069114,671.6,670.45,0.25923043]
[1752141099715,1.5069114,671.59,670.45,0.25923043]
[1752141100012,0.25926229,671.63,670.45,0.25923043]
[1752141100213,1.5069259,671.62,670.45,0.25923043]
[1752141100412,1.5069259,671.61,670.45,0.25923043]
[1752141100715,1.5069259,671.6,670.45,0.25923043]
[1752141100914,1.5069259,671.59,670.45,0.25923043]
[1752141101111,0.25926229,671.63,670.45,0.25923043]
[1752141101311,1.5069406,671.62,670.45,0.25923043]
[1752141101516,1.5069406,671.61,670.45,0.25923043]
[1752141101715,1.5069406,671.6,670.45,0.25923043]
[1752141101916,1.5069406,671.59,670.45,0.25923043]
[1752141102116,0.25926229,671.63,670.45,0.25923043]
[1752141102313,1.5069467,671.62,670.45,0.25923043]
[1752141102512,1.5069467,671.61,670.45,0.25923043]
[1752141102816,1.5069467,671.6,670.45,0.25923043]
[1752141103012,1.5069467,671.59,670.45,0.25923043]
[1752141103214,1.5069467,671.58,670.45,0.25923043]
[1752141103514,0.25926229,671.63,670.45,0.25923043]
[1752141103713,1.5069462,671.62,670.45,0.25923043]
[1752141103917,1.5069462,671.61,670.45,0.25923043]
[1752141104114,1.5069462,671.6,670.45,0.25923043]
[1752141104415,1.5069462,671.59,670.45,0.25923043]
[1752141104612,1.5069462,671.58,670.45,0.25923043]
[1752141104816,0.25926229,671.63,670.45,0.25923043]
[1752141105013,1.5069925,671.62,670.45,0.25923043]
[1752141105214,0.25926229,671.63,670.45,0.25923043]
[1752141115322,1.5050351,671.62,670.45,0.25923043]
[1752141115523,1.5050351,671.61,670.45,0.25923043]
[1752141115718,1.5050351,671.6,670.45,0.25923043]
[1752141116023,1.5050351,671.59,670.45,0.25923043]
[1752141116323,1.5050351,671.58,670.45,0.25923043]
[1752141116521,1.5050351,671.57,670.45,0.25923043]
[1752141116720,1.5050351,671.56,670.45,0.25923043]
[1752141117018,0.25926229,671.63,670.45,0.25923043]
[1752141117221,1.5043123,671.62,670.45,0.25923043]
[1752141117421,1.5043123,671.61,670.45,0.25923043]
[1752141117624,1.5043123,671.6,670.45,0.25923043]
[1752141117928,1.5043123,671.59,670.45,0.25923043]
[1752141118221,1.5043123,671.58,670.45,0.25923043]
[1752141118422,0.25926229,671.63,670.45,0.25923043]
[1752141118423,1.5043123,671.57,670.45,0.25923043]
[1752141118722,1.5043123,671.56,670.45,0.25923043]
[1752141118922,0.25926229,671.63,670.45,0.25923043]
[1752141119121,1.5044034,671.62,670.45,0.25923043]
[1752141119323,1.5044034,671.61,670.45,0.25923043]
[1752141119522,1.5044034,671.6,670.45,0.25923043]
[1752141119720,1.5044034,671.59,670.45,0.25923043]
[1752141119922,1.5044034,671.58,670.45,0.25923043]
[1752141120222,1.5044034,671.57,670.45,0.25923043]
[1752141120425,1.5044034,671.56,670.45,0.25923043]
[1752141120624,0.25926229,671.63,670.45,0.25923043]
[1752141120929,1.5044178,671.62,670.45,0.25923043]
[1752141121128,1.5044178,671.61,670.45,0.25923043]
[1752141121424,1.5044178,671.6,670.45,0.25923043]
[1752141121628,1.5044178,671.59,670.45,0.25923043]
[1752141121826,1.5044178,671.58,670.45,0.25923043]
[1752141122024,1.5044178,671.57,670.45,0.25923043]
[1752141122226,0.25926229,671.63,670.45,0.25923043]
[1752141122427,1.5045488,671.62,670.45,0.25923043]
[1752141122624,1.5045488,671.61,670.45,0.25923043]
[1752141122929,1.5045488,671.6,670.45,0.25923043]
[1752141123228,1.5045488,671.59,670.45,0.25923043]
[1752141123524,1.5045488,671.58,670.45,0.25923043]
[1752141123830,1.5045488,671.57,670.45,0.25923043]
[1752141124130,0.25926229,671.63,670.45,0.25923043]
[1752141124325,1.504643,671.62,670.45,0.25923043]
[1752141124525,1.504643,671.61,670.45,0.25923043]
[1752141124728,1.504643,671.6,670.45,0.25923043]
[1752141124925,1.504643,671.59,670.45,0.25923043]
[1752141125128,1.504643,671.58,670.45,0.25923043]
[1752141125328,0.25926229,671.63,670.45,0.25923043]
[1752141125630,1.504805,671.62,670.45,0.25923043]
[1752141125832,1.504805,671.61,670.45,0.25923043]
[1752141126027,1.504805,671.6,670.45,0.25923043]
[1752141126230,1.504805,671.59,670.45,0.25923043]
[1752141126428,1.504805,671.58,670.45,0.25923043]
[1752141126631,0.25926229,671.63,670.45,0.25923043]
[1752141126829,1.5047109,671.62,670.45,0.25923043]
[1752141127026,1.5047109,671.61,670.45,0.25923043]
[1752141127228,1.5047109,671.6,670.45,0.25923043]
[1752141127528,1.5047109,671.59,670.45,0.25923043]
[1752141127831,1.5047109,671.58,670.45,0.25923043]
[1752141128026,0.25926229,671.63,670.45,0.25923043]
[1752141128232,1.5048214,671.62,670.45,0.25923043]
[1752141128428,1.5048214,671.61,670.45,0.25923043]
[1752141128629,1.5048214,671.6,670.45,0.25923043]
[1752141128828,1.5048214,671.59,670.45,0.25923043]
[1752141129032,1.5048214,671.58,670.45,0.25923043]
[1752141129331,1.5048214,671.57,670.45,0.25923043]
[1752141129533,0.25926229,671.63,670.45,0.25923043]
[1752141129732,1.5059324,671.62,670.45,0.25923043]
[1752141129929,1.5059324,671.61,670.45,0.25923043]
[1752141130132,1.5059324,671.6,670.45,0.25923043]
[1752141130330,1.5059324,671.59,670.45,0.25923043]
[1752141130530,1.5059324,671.58,670.45,0.25923043]
[1752141130734,1.5059324,671.57,670.45,0.25923043]
[1752141130931,1.5059324,671.56,670.45,0.25923043]
[1752141131130,0.25926229,671.63,670.45,0.25923043]
[1752141131334,1.5060913,671.62,670.45,0.25923043]
[1752141131534,1.5060913,671.61,670.45,0.25923043]